Cogmind - Beta 15 @@@ ROGUE MODE // 2025.06.22 @ 23:34:01 Player: LameThyst Result: Destroyed by QD-QJF(R) with Subdweller Laser Performance ------------- Evolutions (0) 0 Regions Visited (3) 600 Robots Destroyed (12) 60 Value Destroyed (346) 346 Prototype IDs (11) 220 Alien Tech Used (0) 0 Bonus (0) 0 TOTAL SCORE: 1226 Bonus ------- None Cogmind --------- Core Integrity 0/250 Matter 280/300 Energy 200/200 System Corruption 0% Temperature Cool (12) Movement Rolling (110) Location -10/Subcaves Parts ------- > --- POWER (1) -------- Subdweller Power Source > --- PROPULSION (2) --- Subdweller Monowheel Subdweller Monowheel > --- UTILITY (2) ------ Large Storage Unit Structural Scanner > --- WEAPON (2) ------- Subdweller Laser Makeshift Sword > --- INVENTORY (15) --- Ion Engine Light Ion Engine Flightbrick Disposable Heat Sink Large Storage Unit Medium Matter Pod (60) Subdweller Optics Seismic Detector Makeshift System Restoration Module Particle Gun Beam Cannon Mining Laser Peak State ------------ > --- POWER ------------ Subdweller Power Source > --- PROPULSION ------- Subdweller Monowheel Subdweller Monowheel > --- UTILITY ---------- Large Storage Unit Structural Scanner > --- WEAPON ----------- Subdweller Laser Makeshift Sword > --- INVENTORY -------- Ion Engine Light Ion Engine Flightbrick Large Storage Unit Medium Matter Pod Subdweller Optics Seismic Detector Makeshift System Restoration Module Particle Gun Beam Cannon Mining Laser [Rating: 19] Favorites ----------- Power Subdweller Power Source Engine Subdweller Power Source Propulsion Aluminum Leg Treads Light Treads Leg Aluminum Leg Wheel Subdweller Monowheel Utility Structural Scanner Device Structural Scanner Storage Large Storage Unit Weapon Particle Gun Energy Gun Particle Gun Energy Cannon Beam Cannon Ballistic Gun Assault Rifle Special Weapon Mining Laser Slashing Weapon Makeshift Sword Build | -11 -10 -10 -10 ------- Run | Yrd Mat Min Sub Slots Evolved . | . . . . Power . | . . . . Propulsion . | . . . . Utility . | . . . . Weapon . | . . . . Parts Attached 30 | 7 9 3 11 Power 7 | 1 2 1 3 Engine 7 | 1 2 1 3 Core . | . . . . Reactor . | . . . . Propulsion 7 | 2 2 . 3 Treads 2 | 2 . . . Leg 3 | . 2 . 1 Wheel 2 | . . . 2 Hover . | . . . . Flight . | . . . . Utility 5 | 1 4 . . Device 1 | . 1 . . Storage 4 | 1 3 . . Processor . | . . . . Hackware . | . . . . Protection . | . . . . Artifact . | . . . . Weapon 11 | 3 1 2 5 Energy Gun 5 | 1 1 1 2 Energy Cannon 1 | . . 1 . Ballistic Gun 2 | 2 . . . Ballistic Cannon . | . . . . Launcher . | . . . . Special Weapon 2 | . . . 2 Impact Weapon . | . . . . Slashing Weapon 1 | . . . 1 Piercing Weapon . | . . . . Special Melee Weapon . | . . . . Unidentified Prototypes . | . . . . Parts Lost 7 | . 5 . 2 Power 2 | . 1 . 1 Propulsion 3 | . 2 . 1 Utility . | . . . . Weapon 2 | . 2 . . Highest Loss Streak 5 | . 5 . 1 To Critical Strikes . | . . . . Average Backups 8 | 2 5 7 10 Power 1 | . 1 1 2 Propulsion 1 | 1 1 1 1 Utility 2 | . 1 2 3 Weapon 2 | . 1 2 3 Tool/Special . | . . . . Unused Backups 7 | . . . 7 Power . | . . . . Propulsion 1 | . . . 1 Utility 6 | . . . 6 Weapon . | . . . . Tool/Special . | . . . . Average Slot Usage (%) 98 | . 95 100 98 Engine 13 | . 13 14 12 Treads 3 | . 19 . . Leg 21 | . 6 28 24 Wheel 2 | . . . 3 Device 13 | . 12 14 14 Storage 14 | . 14 14 14 Energy Gun 12 | . 7 23 10 Energy Cannon 4 | . . 4 5 Ballistic Gun 3 | . 20 . . Special Weapon 5 | . . . 7 Slashing Weapon 2 | . . . 3 Peak Build Rating 19 | 6 7 8 19 Average Rating 10 | 4 6 8 12 On Entrance 5 | . 6 7 8 Naked Turns . | . . . . Heaviest Build 32 | 11 27 32 32 Greatest Support 40 | 40 40 20 40 Greatest Overweight (x) 8 | . 8 1 3 Average Overweight (x) . | . . 1 . Largest Inventory Capacity 25 | 8 25 15 15 Average Capacity 14 | 7 11 15 15 Most Carried 15 | 4 7 9 15 Average Carried 10 | 2 5 7 12 Final Capacity 15 | 8 15 15 15 Final Carried 15 | 4 7 9 15 Class Distribution -------------------- 90% | Mutant 9% | Scavenger-Mutant Dominant Class ---------------- Mutant | -10/Materials Mutant | -10/Mines Mutant | -10/Subcaves Resources | -11 -10 -10 -10 ----------- Run | Yrd Mat Min Sub Matter Collected 670 | 251 189 53 177 Remotely . | . . . . Salvage Created 413 | . 240 23 150 Parts 29 | . 12 3 14 Haulers Intercepted . | . . . . Recyclers Shooed 1 | . 1 . . Parts Field Recycled . | . . . . Retrieved Matter . | . . . . Parts Self-Destructed . | . . . . Prevented . | . . . . Kills | -11 -10 -10 -10 ------- Run | Yrd Mat Min Sub Combat Hostiles Destroyed 11 | . 7 . 4 Melee 1 | . . . 1 Guns 10 | . 7 . 3 Classes Destroyed 4 | . 2 1 1 Tunneler 1 | . . 1 . Swarmer 3 | . 3 . . Grunt 4 | . 4 . . Subdweller 4 | . . . 4 Best Kill Streak 7 | . 7 1 2 Combat Bots Only 7 | . 7 . 2 Max Kills in Single Turn 1 | . 1 1 1 Gunslinging . | . . . . Exploded . | . . . . Melee 1 | . . . 1 Uniques/NPCs Destroyed . | . . . . Combat | -11 -10 -10 -10 -------- Run | Yrd Mat Min Sub Hostile Shots Fired 107 | . 71 . 36 Missed 24 | . 13 . 11 Hits 83 | . 58 . 25 Projectile 83 | . 58 . 25 Critical Strikes 2 | . . . 2 Damage Taken 1250 | . 657 . 593 Core 266 | . 78 . 188 Absorbed by Shields . | . . . . Core Remaining (%) 100 | 100 . . . Volleys Fired 48 | . 22 3 23 Largest 2 | . 2 2 2 Hottest 200 | . 80 125 200 Shots Fired 88 | . 43 6 39 Gun 65 | . 43 3 19 Cannon 8 | . . 3 5 Launcher . | . . . . Special 15 | . . . 15 Kinetic 35 | . 35 . . Thermal 53 | . 8 6 39 Explosive . | . . . . Electromagnetic . | . . . . Robot Hit Streak 9 | . 6 1 9 Robot Miss Streak 2 | . 2 1 1 Penetration Max . | . . . . Secondary Targets 4 | . 4 . . Max Gunslinging Chain 1 | . 1 . . Shots Hit Robots 47 | . 31 1 15 Core Hits 22 | . 14 1 7 Critical Kills . | . . . . Critical Parts Destroyed . | . . . . Critical Strikes 1 | . . . 1 Burn 1 | . . . 1 Melee Attacks 6 | . . . 6 Impact . | . . . . Slashing 6 | . . . 6 Piercing . | . . . . Sneak Attacks . | . . . . Combat Hostiles . | . . . . Follow-up Attacks . | . . . . Damage Inflicted 673 | . 319 31 323 Guns 529 | . 319 14 196 Cannons 17 | . . 17 . Explosions . | . . . . Melee 103 | . . . 103 Ramming . | . . . . Kinetic 264 | . 264 . . Thermal 306 | . 55 31 220 Explosive . | . . . . Electromagnetic . | . . . . Impact . | . . . . Slashing 103 | . . . 103 Piercing . | . . . . Highest Corruption . | . . . . Average Corruption . | . . . . Corruption Purged . | . . . . Corruption Blocked . | . . . . Overload Shots . | . . . . Overflow Damage . | . . . . Projectiles . | . . . . Explosions . | . . . . Melee . | . . . . Knockbacks . | . . . . Impact . | . . . . Kinetic . | . . . . Secondary . | . . . . Self-Inflicted Damage . | . . . . Shots . | . . . . Rammed . | . . . . Targets Rammed . | . . . . Kicked . | . . . . Crushed . | . . . . Highest Temperature 282 | . 72 189 282 Average Temperature 55 | . 19 99 78 Received Heat Transfer 911 | . 249 . 662 Siege Activations . | . . . . Martial Activations . | . . . . Shielding Activations . | . . . . Robots Disrupted . | . . . . Combat Hostiles . | . . . . Robots Corrupted . | . . . . Combat Hostiles . | . . . . Parts Fried . | . . . . Impact Corruptions . | . . . . Robots Melted . | . . . . Combat Hostiles . | . . . . Parts Melted 2 | . . . 2 Heat Transferred 621 | . 125 74 422 Parts Sabotaged . | . . . . Parts Stolen . | . . . . Parts Stripped . | . . . . Power Chain Reactions . | . . . . Alert | -11 -10 -10 -10 ------- Run | Yrd Mat Min Sub Maximum Alert Level . | . . . . Low Security (%) 100 | 100 100 100 . Level 1 . | . . . . Level 2 . | . . . . Level 3 . | . . . . Level 4 . | . . . . Level 5 . | . . . . High Security . | . . . . Max Security . | . . . . Peak Influence 90 | . 90 19 . Initial 19 | . . 19 . Average 13 | . 29 2 . Influence Increases 173 | . 168 5 . Destroy 0b10 Robot/C 140 | . 140 . . Destroy 0b10 Robot/NC 5 | . . 5 . Destroy Leader 20 | . 20 . . Successful Hack 8 | . 8 . . Influence Decreases 173 | . 118 55 . Entered New Map 31 | . . 31 . Time Decay 92 | . 68 24 . Lost Part 50 | . 50 . . Squads Dispatched . | . . . . Investigation . | . . . . Extermination . | . . . . Reinforcement . | . . . . Assault . | . . . . Garrison . | . . . . Intercept . | . . . . Searches Triggered . | . . . . Construction Impeded . | . . . . Haulers Reinforced . | . . . . Active Scanning Responses . | . . . . Cargo Convoy Interrupts . | . . . . Stealth | -11 -10 -10 -10 --------- Run | Yrd Mat Min Sub Distress Signals 1 | . 1 . . Communications Jammed . | . . . . Distress Signals . | . . . . Times Spotted 19 | . 13 . 6 Peak Tracking Total 9 | . 9 . 2 Tactical Retreats . | . . . . Traps | -11 -10 -10 -10 ------- Run | Yrd Mat Min Sub Traps Triggered 1 | . 1 . . Indirectly . | . . . . Trap Hack Attempts . | . . . . Triggered . | . . . . Disarmed . | . . . . Reprogrammed . | . . . . Reused . | . . . . Traps Extracted . | . . . . Installed . | . . . . Triggered . | . . . . Machines | -11 -10 -10 -10 ---------- Run | Yrd Mat Min Sub Machines Disabled 1 | . . . 1 Max in Single Turn 1 | . . . 1 Machines Repaired . | . . . . Machines Dismantled . | . . . . Machines Sabotaged . | . . . . Overloaded Fab Kills . | . . . . Hacking | -11 -10 -10 -10 --------- Run | Yrd Mat Min Sub Machines Accessed 2 | . 1 . 1 Terminals 1 | . 1 . . Fabricators . | . . . . Repair Stations . | . . . . Recycling Units . | . . . . Scanalyzers . | . . . . Garrison Access . | . . . . Total Hacks 13 | . 4 . 9 Successful 10 | . 1 . 9 Failed 3 | . 3 . . Catastrophic 1 | . 1 . . Database Lockouts . | . . . . Manual . | . . . . Terminals 4 | . 4 . . Fabricators . | . . . . Repair Stations . | . . . . Recycling Units . | . . . . Scanalyzers . | . . . . Garrison Access . | . . . . Terminal Hacks 10 | . 1 . 9 Record 8 | . . . 8 Recall Reinforcements 1 | . 1 . . Proto ID Catalog 1 | . . . 1 Fabricator Hacks . | . . . . Repair Station Hacks . | . . . . Recycling Unit Hacks . | . . . . Scanalyzer . | . . . . Garrison Access Hacks . | . . . . Unauthorized Hacks . | . . . . Terminals . | . . . . Fabricators . | . . . . Repair Stations . | . . . . Recycling Units . | . . . . Scanalyzers . | . . . . Garrison Access . | . . . . Data Cores Recovered . | . . . . Used . | . . . . Hacking Detections 1 | . 1 . . Full Trace Events . | . . . . Feedback Events . | . . . . Feedback Blocked . | . . . . Robot Schematics Acquired . | . . . . Robots Built . | . . . . Authchips . | . . . . Time . | . . . . Total Robot Build Rating . | . . . . Part Schematics Acquired . | . . . . Parts Built . | . . . . Authchips . | . . . . Time . | . . . . Total Part Build Rating . | . . . . Parts Repaired . | . . . . Time . | . . . . Parts Recycled . | . . . . Recycled Matter . | . . . . Retrieved Matter . | . . . . Retrieved Components . | . . . . Parts Scanalyzed . | . . . . Part Schematics Acquired . | . . . . Parts Damaged . | . . . . Bothacking | -11 -10 -10 -10 ------------ Run | Yrd Mat Min Sub Used RIF Installer . | . . . . Robots Hacked . | . . . . Non-combat . | . . . . Combat . | . . . . Robot Hacks Applied . | . . . . Relay Couplers Released . | . . . . Fabnet Peak Effective % . | . . . . Robots Rewired . | . . . . Allies Hacked . | . . . . Hacks Repelled . | . . . . Allies | -11 -10 -10 -10 -------- Run | Yrd Mat Min Sub Total Allies . | . . . . Largest Group . | . . . . Highest-Rated Group . | . . . . Highest-Rated Ally . | . . . . Total Orders . | . . . . Ally Attacks . | . . . . Total Damage . | . . . . Kills . | . . . . Allies Corrupted . | . . . . Allies Melted . | . . . . Intel | -11 -10 -10 -10 ------- Run | Yrd Mat Min Sub Active Infowar (turns) 1676 | . 278 289 1109 Structural 1676 | . 278 289 1109 Robot Analysis Total . | . . . . Derelict Logs Recovered 1 | . . 1 . Drone Launches . | . . . . Drone Recoveries . | . . . . Exploration | -11 -10 -10 -10 ------------- Run | Yrd Mat Min Sub Turns Passed 1777 | 86 293 289 1109 Spaces Moved 861 | 48 120 143 550 Core 5 | 4 1 . . Treads 134 | 44 90 . . Legs 597 | . 29 143 425 Wheels 125 | . . . 125 Hover . | . . . . Flight . | . . . . Fastest Speed 50 | 50 160 190 110 Average Speed 173 | 150 169 190 172 Slowest Speed 450 | 160 450 190 330 Overloaded Moves . | . . . . Propulsion Burnouts . | . . . . Robots Hopped . | . . . . Potential Cave-ins . | . . . . Cave-ins Triggered . | . . . . Exploration Rate (%) 26 | 4 27 36 38 Regions Visited 3 Branch Regions 2 Pre-discovered Areas 1 | . . 1 . Known Exits Taken . | . . . . Unknown Exits Taken 3 | 1 1 1 . Scrap Searched 1 | . . 1 . Spaces Dug . | . . . . Terrain Destroyed . | . . . . Melee . | . . . . Projectile . | . . . . AOE . | . . . . Terrain Rammed . | . . . . Walls Destroyed . | . . . . Machines Disabled . | . . . . Actions | -11 -10 -10 -10 --------- Run | Yrd Mat Min Sub Total 1018 | 59 168 154 637 Wait 27 | . 8 . 19 Move 858 | 47 119 142 550 Hop . | . . . . Pick Up 25 | 5 5 4 11 Fast Attach 11 | 5 3 . 3 Attach 6 | 1 3 . 2 Detach 2 | . . . 2 Swap 21 | 1 5 3 12 Drop 14 | . 3 2 9 Fire 48 | . 22 3 23 Melee 6 | . . . 6 Ram . | . . . . Kick . | . . . . Crush . | . . . . Escape Stasis . | . . . . Rewire . | . . . . Trap . | . . . . Miscellaneous . | . . . . Route ------- -11/Scrapyard -10/Materials -10/Mines -10/Subcaves History --------- Turn | Location | Event 6 | -11/Scrapyard | Discovered new exit (range 16) 87 | -11/Scrapyard | Entered Materials 301 | -10/Materials | Build established: Mutant 330 | -10/Materials | Destroyed 7 combat bots 331 | -10/Materials | Lost 5 parts (1p2n2w) 348 | -10/Materials | Discovered new exit (range 13) 380 | -10/Materials | Entered Mines 525 | -10/Mines | Learned location of Zion (-7) 572 | -10/Mines | Discovered new exit (range 7) 669 | -10/Mines | Entered Subcaves 670 | -10/Subcaves | Approached by a straggling Scientist 781 | -10/Subcaves | Shifting Twisted Machinery released Sub. Power Source 785 | -10/Subcaves | Shifting Twisted Machinery released Sub. Power Source 936 | -10/Subcaves | Visited 4L-MR0's lab 967 | -10/Subcaves | Found Flightbrick 1475 | -10/Subcaves | Core integrity fell below 50% 1562 | -10/Subcaves | Core integrity fell below 20% 1778 | -10/Subcaves | Destroyed by QD-QJF(R) with Subdweller Laser Last Messages --------------- 01507_ Acquired Mak. Sword. 01508_ Subatomizers dissect the Sub. Optics. 01511_ Dropped Mining Laser. 01522_ Acquired Sub. Optics. 01523_ Subatomizers dissect the Sub. Optics. 01554_ Dropped Sub. Laser. 01554_ Acquired Sub. Laser. 01570_ BW-IMC(R) destroyed. 01577_ Acquired Sub. Power Source. 01577_ Aluminum Leg destroyed. 01597_ UI-W0F(R) affixes Scrap Shield Fragment to Scrap Shield. 01605_ Acquired Sub. Laser. 01607_ Dropped Sub. Laser. 01611_ UI-W0F(R) destroyed. 01617_ Acquired 36 matter. 01621_ Acquired 39 matter. 01625_ Dropped Aluminum Leg. 01626_ Acquired Sub. Monowheel. 01633_ Acquired Disposable Heat Sink. Map ----- +----------------------------------------------------+ | ?????## ## ########???????????????????? | | ?????## ### ###???????????????????? | | ?????## ## ###??????????????????? | | ?????## ## ## ####?????????????????? | | ?????## ## #### ### ####????????????????? | | ?????######## #### #### ###????????????????? | | ?????############ #### ####??????????????? | | ???????????###### ### ######?????????????? | | ??????????????#### #### # ###########????## | | ??????????????##### ##### ###########?#### | | ??????????????## ## ###### #### ######" | | ??????????????## ##### ## #####"" | | ??????????????## ##### # #"#"" | | ??????????????## #### """" | | ??????????????### ### " """"" """ | | ??????????????### #### "" | | ???????????????### #### """### " | | ???????????????#### #####"" ##### | | ????????????????##### ### ###### ###### | | ?????????????????##### #### ####?## ##### | | ???????????????????#### #### ####### # ## | | ????????????????????### ### | | ?????????????????????### ### ? ## ## # | | ??????????????????## #### ##### ?? # #### ## | | ??????????## ??? ### ?### ######### ?? # ####### | | ??????????## ### ##@ #####??###?? # # ## | | ??????????### && R ##??????????## | | ???????????### R ##??????????## | | ????????????### ??????????#### ## # | | ????????????#### ## ## ??????########### | | ?????????????####################????????######### | | ??????????????###################????????????????? | | ?????????????????????????????????????????????????? | | ?????????????????????????????????????????????????? | | ?????????????????????????????????????????????????? | | ?????????????????????????????????????????????????? | | ?????????????????????????????????????????????????? | | ?????????????????????????????????????????????????? | | ?????????????????????????????????????????????????? | | ?????????????????????????????????????????????????? | | ?????????????????????????????????????????????????? | | ?????????????????????????????????????????????????? | | ?????????????????????????????????????????????????? | | ?????????????????????????????????????????????????? | | ?????????????????????????????????????????????????? | | | | | | | | | | | +----------------------------------------------------+ Best States ------------- Heat Dissipation 25 Energy Generation 15 Energy Capacity 250 Matter Stores 300 Matter Capacity 300 Sight Range 16 Terrain Scan Density 10 Evasion (%) 40 Recoil Reduction 2 Item Schematics ----------------- None Robot Schematics ------------------ None Fabricated ------------ Nothing Repaired ---------- Nothing Alien Tech Used ----------------- None Achievements -------------- None Challenges ------------ None Game ------ Seed ElectronMasterBlade Manual? 0 Play Time 00:18:19 Cumulative 17.3 hours Start 2025.06.22 @ 23:17:48 End 2025.06.22 @ 23:34:01 Sessions 1 Manual Loads 0 Difficulty Rogue Special Mode None Game No. 24 Rogue 24 Adventurer 0 Explorer 0 Win Type - Total 0 Types 0/0/0/0/0/0/0/0/0/0 Lore% 8 Gallery% 20 Achievement% 16 Wizard Run 0 Options --------- Layout 1 ASCII 0 Keyboard 0 Movement Mouse Keybinds 0 Fullscreen 2 Font 48/Smallcaps Map View 50x35 Zoom Use 0% Tactical HUD 1 Map Filters NONE Filters NONE Steam 0 RUN: c6898970-00f4-498e-b032-9ee2b2cc23c4